Cogmind - Beta 11 @@@ ROGUE MODE // 2022.04.18 @ 14:36:20 Player: RNGesus Result: Destroyed by NK-0LA with NK-0LA's Tesla Doomcannon Performance ------------- Evolutions (1) 500 Regions Visited (6) 1200 Robots Destroyed (56) 280 Value Destroyed (1254) 1254 Prototype IDs (25) 500 Alien Tech Used (0) 0 Bonus (-291) -291 TOTAL SCORE: 3443 Bonus ------- High Alert Combat Kills 11 Aligned with FarCom 300 Friendly Fire -602 Cogmind --------- Core Integrity 0/400 Matter 99/300 Energy 160/160 System Corruption 2% Temperature Cool (0) Movement Treading (233) Ox1 Location -8/Mines Parts ------- > --- POWER (1) -------- Light Nuclear Core > --- PROPULSION (3) --- Armored Treads Advanced Treads Advanced Treads > --- UTILITY (3) ------ Huge Storage Unit Reactive Plating > --- WEAPON (2) ------- 8R-AWN's Boregun > --- INVENTORY (25) --- Light Treads Advanced Treads Advanced Myomer Leg Advanced Myomer Leg Improved Flight Unit Cooling System Advanced Visual Processing Unit Advanced Weapon Cycler Improved Trap Extractor (0/6) Light Assault Rifle Light Assault Rifle Heavy Assault Rifle Heavy Assault Rifle Grenade Launcher Katana Peak State ------------ > --- POWER ------------ Light Angular Momentum Engine > --- PROPULSION ------- Armored Treads Armored Treads Advanced Treads > --- UTILITY ---------- Huge Storage Unit Light Armor Plating Reactive Plating > --- WEAPON ----------- Heavy Assault Rifle 8R-AWN's Boregun > --- INVENTORY -------- Light Nuclear Core Light Treads Advanced Treads Advanced Treads Advanced Myomer Leg Advanced Myomer Leg Improved Flight Unit Cooling System Advanced Visual Processing Unit Advanced Weapon Cycler Reactive Plating Improved Trap Extractor Light Assault Rifle Light Assault Rifle Heavy Assault Rifle Heavy Assault Rifle Heavy Assault Rifle Heavy Assault Rifle Grenade Launcher Grenade Launcher Katana [Rating: 37] Favorites ----------- Power Ion Engine Engine Ion Engine Power Core Light Nuclear Core Propulsion Armored Treads Treads Armored Treads Flight Unit Improved Flight Unit Utility High-capacity Storage Unit Device Disposable Heat Sink Storage High-capacity Storage Unit Protection Reactive Plating Weapon Light Assault Rifle Energy Gun Small Laser Ballistic Gun Light Assault Rifle Launcher Grenade Launcher Build | -11 -10 -10 -9 -9 -9 -8 ------- Run | Scr Mat Min Mat Min Exi Min Slots Evolved 2 | . . . 2 . . . Power . | . . . . . . . Propulsion 1 | . . . 1 . . . Utility 1 | . . . 1 . . . Weapon . | . . . . . . . Parts Attached 72 | 6 8 7 25 4 16 6 Power 6 | 1 . 1 3 . 1 . Engine 4 | 1 . 1 2 . . . Core 2 | . . . 1 . 1 . Reactor . | . . . . . . . Propulsion 18 | 2 . . 11 . 4 1 Treads 17 | 2 . . 10 . 4 1 Leg . | . . . . . . . Wheel . | . . . . . . . Hover . | . . . . . . . Flight 1 | . . . 1 . . . Utility 13 | 1 2 1 5 . 3 1 Device 1 | . . 1 . . . . Storage 4 | 1 2 . 1 . . . Processor . | . . . . . . . Hackware . | . . . . . . . Protection 8 | . . . 4 . 3 1 Artifact . | . . . . . . . Weapon 35 | 2 6 5 6 4 8 4 Energy Gun 4 | 1 3 . . . . . Energy Cannon . | . . . . . . . Ballistic Gun 19 | 1 . 3 4 2 7 2 Ballistic Cannon . | . . . . . . . Launcher 12 | . 3 2 2 2 1 2 Special Weapon . | . . . . . . . Impact Weapon . | . . . . . . . Slashing Weapon . | . . . . . . . Piercing Weapon . | . . . . . . . Special Melee Weapon . | . . . . . . . Unidentified Prototypes 2 | . . . 1 . 1 . Parts Lost 17 | . . 1 2 . 8 6 Power 2 | . . 1 . . 1 . Propulsion 6 | . . . 2 . 3 1 Utility 5 | . . . . . 3 2 Weapon 4 | . . . . . 1 3 Highest Loss Streak 6 | . . 1 1 . 4 6 To Critical Strikes 3 | . . . 1 . 2 . Average Slot Usage (%) 94 | . 85 99 99 100 92 77 Engine 11 | . 14 14 9 11 9 . Treads 30 | . 28 28 32 33 33 27 Device 4 | . . 13 6 . . . Storage 12 | . 14 14 11 11 11 11 Protection 10 | . . . 15 22 22 5 Energy Gun 2 | . 13 . . . . . Ballistic Gun 19 | . 14 27 22 21 14 16 Naked Turns . | . . . . . . . Heaviest Build 111 | 12 47 48 107 107 111 . Greatest Support 62 | 40 40 40 60 60 62 . Greatest Overweight (x) 3 | 3 1 1 1 1 1 . Average Overweight (x) . | . . 1 . 1 1 . Largest Inventory Capacity 25 | 8 20 20 25 25 25 25 Average Capacity 20 | 7 15 20 20 25 25 25 Most Carried 25 | 2 11 13 25 25 25 19 Average Carried 15 | 1 7 11 18 24 22 16 Final Capacity 25 | 8 20 20 25 25 25 25 Final Carried 25 | 2 11 13 25 25 19 15 Class Distribution -------------------- 91% | Mutant 8% | Scavenger-Mutant Dominant Class ---------------- Mutant | -10/Materials Mutant | -10/Mines Mutant | -9/Materials Mutant | -9/Mines Mutant | -9/Exiles Mutant | -8/Mines Resources | -11 -10 -10 -9 -9 -9 -8 ----------- Run | Scr Mat Min Mat Min Exi Min Matter Collected 1594 | 212 205 170 517 40 450 . Remotely . | . . . . . . . Salvage Created 1583 | . 161 137 996 133 134 22 Parts 124 | . 24 16 75 4 4 1 Haulers Intercepted 2 | . 1 . 1 . . . Recyclers Shooed . | . . . . . . . Parts Field Recycled . | . . . . . . . Retrieved Matter . | . . . . . . . Parts Self-Destructed . | . . . . . . . Prevented . | . . . . . . . Kills | -11 -10 -10 -9 -9 -9 -8 ------- Run | Scr Mat Min Mat Min Exi Min Combat Hostiles Destroyed 62 | . 9 8 23 17 3 2 Guns 27 | . 3 2 19 2 1 . AOE 35 | . 6 6 4 15 2 2 Classes Destroyed 10 | . 5 1 3 1 . . Worker 3 | . . 1 2 . . . Builder 2 | . 1 . 1 . . . Hauler 2 | . 1 . 1 . . . Operator 1 | . . . 1 . . . Watcher 2 | . 1 . 1 . . . Swarmer 22 | . 8 6 8 . . . Grunt 14 | . 1 2 6 3 . 2 Duelist 1 | . . . 1 . . . Sentry 8 | . . . 8 . . . Assembled 20 | . . . . 14 6 . Best Kill Streak 14 | . 6 3 3 14 2 2 Combat Bots Only 14 | . 5 3 3 14 2 2 Max Kills in Single Turn 4 | . 2 3 2 4 4 2 Gunslinging . | . . . . . . . Exploded 4 | . 2 3 2 4 1 2 Melee . | . . . . . . . Uniques/NPCs Destroyed 1 | . . . . . 1 . 8R-AWN (-9/Exiles) Combat | -11 -10 -10 -9 -9 -9 -8 -------- Run | Scr Mat Min Mat Min Exi Min Damage Taken 3990 | . 149 372 895 598 1277 699 Core 491 | . 25 66 123 67 101 109 Absorbed by Shields . | . . . . . . . Redirected to Shielding 211 | . . . 25 55 131 . Core Remaining (%) 81 | 100 . 63 . . . . Volleys Fired 177 | . 18 25 69 18 39 8 Largest 2 | . 2 2 2 2 2 2 Hottest 60 | . 60 40 46 46 46 46 Shots Fired 322 | . 30 49 135 25 73 10 Gun 290 | . 24 47 132 14 68 5 Cannon . | . . . . . . . Launcher 32 | . 6 2 3 11 5 5 Special . | . . . . . . . Kinetic 278 | . 12 47 132 14 68 5 Thermal 12 | . 12 . . . . . Explosive 32 | . 6 2 3 11 5 5 Electromagnetic . | . . . . . . . Robot Hit Streak 18 | . 6 8 18 5 10 6 Robot Miss Streak 6 | . 3 3 3 6 3 1 Penetration Max . | . . . . . . . Secondary Targets 1 | . . . 1 . . . Max Gunslinging Chain 1 | . . . 1 . . . Shots Hit Robots 205 | . 15 34 92 9 49 6 Core Hits 146 | . 17 17 52 28 26 6 Critical Kills 3 | . . . 2 1 . . Critical Parts Destroyed . | . . . . . . . Critical Strikes 4 | . . . 2 1 1 . Destroy 4 | . . . 2 1 1 . Melee Attacks . | . . . . . . . Impact . | . . . . . . . Slashing . | . . . . . . . Piercing . | . . . . . . . Sneak Attacks . | . . . . . . . Combat Hostiles . | . . . . . . . Follow-up Attacks . | . . . . . . . Damage Inflicted 4860 | . 501 519 1231 931 1173 505 Guns 2353 | . 143 274 1045 90 754 47 Cannons . | . . . . . . . Explosions 2507 | . 358 245 186 841 419 458 Melee . | . . . . . . . Ramming . | . . . . . . . Kinetic 2276 | . 66 274 1045 90 754 47 Thermal 77 | . 77 . . . . . Explosive 2507 | . 358 245 186 841 419 458 Electromagnetic . | . . . . . . . Impact . | . . . . . . . Slashing . | . . . . . . . Piercing . | . . . . . . . Highest Corruption 2 | . 2 2 2 2 2 2 Average Corruption 2 | . 2 2 2 2 2 2 Corruption Purged . | . . . . . . . Corruption Blocked . | . . . . . . . Effects 61 | . 7 23 3 2 25 1 Message Errors 16 | . . 7 1 1 7 . Matter Fused 10 | . 1 5 1 . 3 . Heat Flow Errors 5 | . . 1 . 1 3 . Energy Discharges 6 | . 2 1 1 . 2 . Data Loss (minor) 11 | . 3 2 . . 6 . Data Loss (major) 3 | . . 2 . . 1 . Misfires 5 | . . 3 . . 2 . Alerts 4 | . 1 1 . . 1 1 Weapon Failures 1 | . . 1 . . . . Overload Shots . | . . . . . . . Overflow Damage 49 | . 13 . 2 29 5 . Projectiles . | . . . . . . . Explosions 49 | . 13 . 2 29 5 . Melee . | . . . . . . . Knockbacks . | . . . . . . . Impact . | . . . . . . . Kinetic . | . . . . . . . Secondary . | . . . . . . . Self-Inflicted Damage 309 | . . 20 . 167 . 122 Shots 12 | . . 1 . 6 . 5 Rammed . | . . . . . . . Targets Rammed . | . . . . . . . Kicked . | . . . . . . . Crushed . | . . . . . . . Highest Temperature 235 | . 52 206 30 127 235 25 Average Temperature 39 | . 23 45 9 41 74 13 Received Heat Transfer 672 | . 12 129 339 93 . 99 Effects 1 | . . . . . 1 . Energy Bleed 1 | . . . . . 1 . Siege Activations . | . . . . . . . Robots Corrupted . | . . . . . . . Combat Hostiles . | . . . . . . . Parts Fried . | . . . . . . . Impact Corruptions . | . . . . . . . Robots Melted . | . . . . . . . Combat Hostiles . | . . . . . . . Parts Melted . | . . . . . . . Heat Transferred 175 | . 175 . . . . . Parts Sabotaged . | . . . . . . . Parts Stolen . | . . . . . . . Parts Stripped . | . . . . . . . Power Chain Reactions . | . . . . . . . Missiles Intercepted . | . . . . . . . Alert | -11 -10 -10 -9 -9 -9 -8 ------- Run | Scr Mat Min Mat Min Exi Min Peak Influence 464 | . 379 94 464 379 . 44 Initial 180 | . . . . 180 . . Average 158 | . 157 47 251 279 . 19 Maximum Alert Level 2 | . 1 . 2 1 . . Low Security (%) 59 | 100 59 100 28 5 . 100 Level 1 36 | . 40 . 58 94 . . Level 2 3 | . . . 12 . . . Level 3 . | . . . . . . . Level 4 . | . . . . . . . Level 5 . | . . . . . . . High Security . | . . . . . . . Max Security . | . . . . . . . Squads Dispatched 2 | . . . 2 . . . Investigation . | . . . . . . . Extermination . | . . . . . . . Reinforcement 2 | . . . 2 . . . Assault . | . . . . . . . Garrison . | . . . . . . . Intercept . | . . . . . . . Searches Triggered . | . . . . . . . Construction Impeded . | . . . . . . . Haulers Reinforced . | . . . . . . . Active Scanning Responses . | . . . . . . . Cargo Convoy Interrupts . | . . . . . . . Stealth | -11 -10 -10 -9 -9 -9 -8 --------- Run | Scr Mat Min Mat Min Exi Min Distress Signals 6 | . 1 . 5 . . . Communications Jammed . | . . . . . . . Distress Signals . | . . . . . . . Times Spotted 100 | . 18 9 42 23 4 4 Peak Tracking Total 16 | . 5 3 6 16 5 4 Tactical Retreats 10 | . 1 1 2 2 4 . Traps | -11 -10 -10 -9 -9 -9 -8 ------- Run | Scr Mat Min Mat Min Exi Min Traps Triggered 3 | . 1 1 1 . . . Indirectly . | . . . . . . . Trap Hack Attempts . | . . . . . . . Triggered . | . . . . . . . Disarmed . | . . . . . . . Reprogrammed . | . . . . . . . Reused . | . . . . . . . Traps Extracted . | . . . . . . . Installed . | . . . . . . . Triggered . | . . . . . . . Machines | -11 -10 -10 -9 -9 -9 -8 ---------- Run | Scr Mat Min Mat Min Exi Min Machines Disabled 5 | . . 1 1 . 3 . Max in Single Turn 1 | . . 1 1 . 1 . Machines Sabotaged . | . . . . . . . Garrisons Compromised . | . . . . . . . Overloaded Fab Kills . | . . . . . . . Hacking | -11 -10 -10 -9 -9 -9 -8 --------- Run | Scr Mat Min Mat Min Exi Min Machines Accessed 8 | . 5 1 1 . 1 . Terminals 6 | . 5 . 1 . . . Fabricators . | . . . . . . . Repair Stations . | . . . . . . . Recycling Units . | . . . . . . . Scanalyzers . | . . . . . . . Garrison Access . | . . . . . . . Total Hacks 17 | . 11 1 4 . 1 . Successful 13 | . 8 1 3 . 1 . Failed 3 | . 2 . 1 . . . Catastrophic . | . . . . . . . Database Lockouts 1 | . 1 . . . . . Manual 12 | . 8 . 3 . 1 . Terminals 15 | . 11 . 4 . . . Fabricators . | . . . . . . . Repair Stations . | . . . . . . . Recycling Units . | . . . . . . . Scanalyzers . | . . . . . . . Garrison Access . | . . . . . . . Terminal Hacks 13 | . 8 1 3 . 1 . Robot Analysis 2 | . 2 . . . . . Open Door 1 | . . 1 . . . . Branch Access Points 2 | . 1 . 1 . . . Alert Level 2 | . 1 . 1 . . . Locate Traps 1 | . 1 . . . . . Hauler Manifests 2 | . 1 . 1 . . . Registered Components 1 | . 1 . . . . . Zone Layout 1 | . 1 . . . . . EX-Prototype ID Bank 1 | . . . . . 1 . Fabricator Hacks . | . . . . . . . Repair Station Hacks . | . . . . . . . Recycling Unit Hacks . | . . . . . . . Scanalyzer . | . . . . . . . Garrison Access Hacks . | . . . . . . . Unauthorized Hacks . | . . . . . . . Terminals . | . . . . . . . Fabricators . | . . . . . . . Repair Stations . | . . . . . . . Recycling Units . | . . . . . . . Scanalyzers . | . . . . . . . Garrison Access . | . . . . . . . Data Cores Recovered . | . . . . . . . Used . | . . . . . . . Hacking Detections 5 | . 4 . 1 . . . Full Trace Events . | . . . . . . . Feedback Events . | . . . . . . . Feedback Blocked . | . . . . . . . Robot Schematics Acquired . | . . . . . . . Robots Built . | . . . . . . . Authchips . | . . . . . . . Time . | . . . . . . . Total Robot Build Rating . | . . . . . . . Part Schematics Acquired . | . . . . . . . Parts Built . | . . . . . . . Authchips . | . . . . . . . Time . | . . . . . . . Total Part Build Rating . | . . . . . . . Parts Repaired . | . . . . . . . Time . | . . . . . . . Parts Recycled . | . . . . . . . Recycled Matter . | . . . . . . . Retrieved Matter . | . . . . . . . Retrieved Components . | . . . . . . . Parts Scanalyzed . | . . . . . . . Part Schematics Acquired . | . . . . . . . Parts Damaged . | . . . . . . . Bothacking | -11 -10 -10 -9 -9 -9 -8 ------------ Run | Scr Mat Min Mat Min Exi Min Used RIF Installer . | . . . . . . . Robots Hacked . | . . . . . . . Non-combat . | . . . . . . . Combat . | . . . . . . . Robot Hacks Applied . | . . . . . . . Relay Couplers Released . | . . . . . . . Fabnet Peak Effective % . | . . . . . . . Robots Rewired . | . . . . . . . Allies Hacked . | . . . . . . . Hacks Repelled . | . . . . . . . Allies | -11 -10 -10 -9 -9 -9 -8 -------- Run | Scr Mat Min Mat Min Exi Min Total Allies . | . . . . . . . Largest Group . | . . . . . . . Highest-Rated Group . | . . . . . . . Highest-Rated Ally . | . . . . . . . Total Orders . | . . . . . . . Ally Attacks . | . . . . . . . Total Damage . | . . . . . . . Kills . | . . . . . . . Allies Corrupted . | . . . . . . . Allies Melted . | . . . . . . . Intel | -11 -10 -10 -9 -9 -9 -8 ------- Run | Scr Mat Min Mat Min Exi Min Robot Analysis Total 2 | . 2 . . . . . Derelict Logs Recovered 2 | . . 2 . . . . Drone Launches . | . . . . . . . Drone Recoveries . | . . . . . . . Exploration | -11 -10 -10 -9 -9 -9 -8 ------------- Run | Scr Mat Min Mat Min Exi Min Turns Passed 6975 | 72 1356 1623 1550 421 1928 25 Spaces Moved 2794 | 40 647 586 643 149 729 . Core 8 | 8 . . . . . . Treads 2786 | 32 647 586 643 149 729 . Legs . | . . . . . . . Wheels . | . . . . . . . Hover . | . . . . . . . Flight . | . . . . . . . Fastest Speed 50 | 50 160 240 160 250 241 . Average Speed 220 | 155 197 240 194 250 244 . Slowest Speed 250 | 200 240 240 250 250 250 . Overloaded Moves . | . . . . . . . Propulsion Burnouts . | . . . . . . . Robots Hopped . | . . . . . . . Cave-ins Triggered . | . . . . . . . Exploration Rate (%) 51 | 3 96 98 70 27 62 3 Regions Visited 6 Branch Regions 4 Pre-discovered Areas . | . . . . . . . Known Exits Taken 2 | . 1 . 1 . . . Unknown Exits Taken 4 | 1 . 1 . 1 1 . Scrap Searched 2 | . . 1 . 1 . . Spaces Dug 6 | . . 6 . . . . Terrain Destroyed 186 | . 43 9 16 79 15 24 Melee . | . . . . . . . Projectile . | . . . . . . . AOE 186 | . 43 9 16 79 15 24 Terrain Rammed . | . . . . . . . Walls Destroyed . | . . . . . . . Machines Disabled . | . . . . . . . Actions | -11 -10 -10 -9 -9 -9 -8 --------- Run | Scr Mat Min Mat Min Exi Min Total 3334 | 47 699 764 832 172 806 14 Wait 195 | . 12 142 41 . . . Move 2788 | 39 646 585 642 148 728 . Hop . | . . . . . . . Pick Up 58 | 2 10 4 28 1 13 . Fast Attach 12 | 6 2 . 4 . . . Attach 22 | . . 3 3 . 12 4 Detach 4 | . 2 1 1 . . . Swap 38 | . 6 4 18 4 4 2 Drop 40 | . 3 . 26 1 10 . Fire 177 | . 18 25 69 18 39 8 Melee . | . . . . . . . Ram . | . . . . . . . Kick . | . . . . . . . Crush . | . . . . . . . Escape Stasis . | . . . . . . . Rewire . | . . . . . . . Trap . | . . . . . . . Miscellaneous . | . . . . . . . Route ------- -11/Scrapyard -10/Materials (discovered 5 exits: *Mat x3 / *Min x2) -10/Mines (discovered 2 exits: *Mat x2) -9/Materials (discovered 4 exits: *Mat x3 / *Min) -9/Mines -9/Exiles -8/Mines History --------- Turn | Location | Event 23 | -11/Scrapyard | Discovered new exit (range 15) 73 | -11/Scrapyard | Entered Materials 248 | -10/Materials | Discovered new exit (range 10) 295 | -10/Materials | Central database locked down 305 | -10/Materials | Build established: Mutant 440 | -10/Materials | Identified exit to Mines 486 | -10/Materials | Discovered new exit (range 4) 790 | -10/Materials | Discovered new exit (range 8) 1429 | -10/Materials | Entered Mines 1544 | -10/Mines | Learned Materials garrison access intel 1753 | -10/Mines | Discovered new exit (range 5) 1883 | -10/Mines | Discovered new exit (range 7) 2262 | -10/Mines | Learned location of 1 exit from Materials 2685 | -10/Mines | Met a Derelict who couldn't figure out how to use a Trap Extractor 3052 | -10/Mines | Entered Materials 3052 | -9/Materials | Evolved 2 slots: Propulsion x1, Utility x1 3053 | -9/Materials | Identified exit to Materials 3383 | -9/Materials | Discovered exit to Materials (range 13) 3464 | -9/Materials | Build established: Scavenger-Mutant 3734 | -9/Materials | Discovered exit to Materials (range 14) 3855 | -9/Materials | Identified exit to Mines 3997 | -9/Materials | Build established: Mutant 4602 | -9/Materials | Entered Mines 4604 | -9/Mines | Discovered new exit (range 6) 4687 | -9/Mines | Deemed a non-threat by the Exiles lab entrance 4927 | -9/Mines | Assembled infested the area 4932 | -9/Mines | Assisted by a Guerilla fighting off Assembled 5023 | -9/Mines | Entered Exiles 5028 | -9/Exiles | Destroyed 14 combat bots 5170 | -9/Exiles | Discovered new exit (range 15) 5200 | -9/Exiles | Met 8R-AWN 5241 | -9/Exiles | Met EX-HEX 5314 | -9/Exiles | Met EX-BIN 5344 | -9/Exiles | Aligned with FarCom system 5346 | -9/Exiles | Given EX-Vault access code 5409 | -9/Exiles | Opened EX-Vault 5464 | -9/Exiles | Warned to stay clear of 0b10 Research branches 5537 | -9/Exiles | Met EX-DEC 5795 | -9/Exiles | Attacked by the Exiles 5798 | -9/Exiles | Core integrity fell below 50% 5883 | -9/Exiles | Lost 4 parts (2n2u) 5906 | -9/Exiles | Destroyed 8R-AWN 5917 | -9/Exiles | Found Prototype Ballistic Gun 6738 | -9/Exiles | Identified 8R-AWN's Boregun 6951 | -9/Exiles | Entered Mines 6963 | -8/Mines | Core integrity fell below 20% 6970 | -8/Mines | NK-0LA came to Exiles' defense 6976 | -8/Mines | Destroyed by NK-0LA with NK-0LA's Tesla Doomcannon Last Messages --------------- 06794_ Acquired 7 matter. 06804_ %VTZQLVCU0M&L=,Z9QJ7DJG%JPH8L ECLK5 A strange signal echoes through the mines. LOCATION=UNKNOWN GOAL=ESCAPE 06952_ C-30 ARC bursts open, deploying its payload. 06952_ L-31 Rogue unfolds itself. 06952_ G-47 Trooper unfolds itself. 06955_ Arm. Treads destroyed. 06955_ Reactive Plating destroyed. 06955_ Destroyed Reactive Plating. 06955_ Lgt. Armor Plating destroyed. 06956_ Grenade Launcher destroyed. 06964_ G-47 Trooper destroyed. 06969_ System corrupted: IFF burst signal emitted. 06970_ NK-0LA: "I came as fast as I could... Wait, it was you!" 06971_ Hvy. Assault Rifle destroyed. 06972_ L-31 Rogue destroyed. 06974_ Hvy. Assault Rifle destroyed. 06974_ HV Slug penetrates Wall. Map ----- +----------------------------------------------------+ | ?????????????????????????????????????????????????? | | ?????????????????????????????????????????????????? | | ?????????????????????????????????????????????????? | | ?????????????????????????????????????????????????? | | ?????????????????????????????????????????????????? | | ?????????????????????????????????????????????????? | | ?????????????????????????????????????????????????? | | ?????????????????????????????????????????????????? | | ?????????????????????????????????????????????????? | | ?????????????????????????????????????????????????? | | ?????????????????????????????????????????????????? | | ?????????????????????????????????????????????????? | | ?????????????????????????????????????????????????? | | ?????????????????????????????????????????????????? | | ?????????????????????????????????????????????????? | | ?????????????????????????????????????????????????? | | ?????????????????????????????????????????????????? | | ?????????????????????????????????????????????????? | | ?????????????????????????????????????????????????? | | ?????????????????????????????????????????????????? | | ?????????????????????????????????????????????????? | | ??????????????????????????????????? "???????????? | | ???????????????????????????????? ??????????????? | | ???????????????????????####### #????????????????? | | ???????????????????????# #????????????????? | | ???????????????????????# @ #????????????????? | | ???????????????????????# % = #????????????????? | | ?????????????????????? x % ##????????????????? | | ????????????????????? % #?????????????????? | | ???????????????????? ## #????????????????? | | ?????????????????? ?# ##????????????????? | | ?????????????????## ??### ###?????????????????? | | ??????????????????##??????####???????????????????? | | ?????????????????????????????????????????????????? | | ?????????????????????????????????????????????????? | | ?????????????????????????????????????????????????? | | ?????????????????????????????????????????????????? | | ?????????????????????????????????????????????????? | | ?????????????????????????????????????????????????? | | ?????????????????????????????????????????????????? | | ?????????????????????????????????????????????????? | | | | | | | | | | | | | | | | | | | +----------------------------------------------------+ Best States ------------- Heat Dissipation 28 Coolant Potential 50 Energy Generation 18 Energy Capacity 265 Matter Stores 300 Matter Capacity 300 Sight Range 16 Terrain Scan Density 10 Armor Coverage 300 Resistance: KI 20 Weapon Shielding 66 Evasion (%) 40 Recoil Reduction 3 Item Schematics ----------------- None Robot Schematics ------------------ None Fabricated ------------ Nothing Alien Tech Used ----------------- None Achievements -------------- None Challenges ------------ None Game ------ Seed XenonFactoryNanovents Manual? 0 Play Time 00:33:32 Cumulative 340.3 hours Start 2022.04.18 @ 13:35:00 End 2022.04.18 @ 14:36:20 Sessions 1 Manual Loads 0 Difficulty Rogue Special Mode None Game No. 500 Rogue 500 Adventurer 0 Explorer 0 Win Type - Total 6 Types 4/0/1/1/0/0/0/0/0 Lore% 81 Gallery% 84 Achievement% 66 Wizard Run 0 Options --------- ASCII 0 Keyboard 1 Movement Numpad Keybinds 0 Fullscreen 2 Font 24/Smallcaps Map View 76x50 Tactical HUD 1 Map Filters NONE Filters NONE Steam 1 RUN: 6e768b11-f3b8-4d37-8913-4de7094f0c63